[Event "XTX Markets London Masters 2024"]
[Site "London"]
[Date "2024.11.30"]
[Round "3.15"]
[White "Willow, Jonah B"]
[Black "Verma, Shlok"]
[Result "1-0"]
[ECO "C02"]
[WhiteElo "2454"]
[BlackElo "2191"]
[Annotator "TA"]
[PlyCount "57"]
[EventDate "2024.11.28"]
[EventType "swiss"]
[EventCountry "ENG"]
[SourceTitle "playchess.com"]
[Source "ChessBase"]
[SourceQuality "1"]
[TimeControl "40/5400+30:1800+30"]

{[%evp 16,57,42,17,59,56,43,36,48,35,26,26,50,42,42,40,48,0,53,39,63,59,111,114,118,111,108,129,126,46,43,39,38,43,71,67,72,64,136,143,204,211,861,872]} 1. e4 {[%emt 0:04:23]} e6 {[%emt 0:02:26]} 2. d4 {[%emt 0:00:13]} d5 {[%emt 0:00:46]} 3. e5 {[%emt 0:00:09]} c5 {[%emt 0:00:05]} 4. c3 {[%emt 0:00:04]} Nc6 {[%emt 0:00:05]} 5. Nf3 {[%emt 0:00:07]} Qb6 {[%emt 0:00:06]} 6. Bd3 {[%emt 0:00:21]} Bd7 {[%emt 0:00:06]} 7. dxc5 {[%emt 0:00:05]} Bxc5 {[%emt 0:03:10]} 8. O-O {[%emt 0:00:26]} a5 {[%emt 0:00:40]} 9. Nbd2 {[%emt 0:00:24]} Qc7 {[%emt 0:21:16]} 10. Nb3 {[%emt 0:02:29]} Bb6 {[%emt 0:00:08]} 11. Bf4 {[%emt 0:01:57]} Nge7 {[%emt 0:00:15] White is slightly better.} 12. Nbd4 {[%emt 0:00:56]} Nxd4 {[%emt 0:04:04]} 13. cxd4 {[%emt 0:00:15]} Bc6 {[%emt 0:01:33]} 14. Rc1 {[%emt 0:00:52]} Qd7 {[%emt 0:00:33]} 15. Re1 {[%emt 0:05:52]} Ng6 {[%emt 0:02:09]} 16. Bg3 {[%emt 0:01:34]} (16. Bd2 $14 {might be stronger.}) 16... O-O {[%emt 0:00:54]} ({Better is} 16... Bb5 $11) 17. h4 $14 {[%emt 0:00:09][%cal Bh2h4,Bh4h5,Bh5h6][%mdl 32]} Rfc8 {[%emt 0:01:11]} 18. h5 {[%emt 0:01:13]} Nf8 {[%emt 0:00:02] [#]} (18... Ne7 $14) 19. h6 $1 $16 {[%emt 0:00:25][%mdl 512] hxg7 would now be deadly.} g6 {[%emt 0:00:49]} 20. Qd2 {[%emt 0:03:59]} Bd8 {[%emt 0:06:33]} 21. Qf4 {[%emt 0:00:54] White is much more active.} Bb5 {[%emt 0:07:10]} 22. Bb1 {[%emt 0:03:02]} ({White should play} 22. Bxb5 $16 Qxb5 23. Bh4) 22... Rxc1 $14 {[%emt 0:01:25]} 23. Rxc1 {[%emt 0:00:07]} Rc8 {[%emt 0:00:10]} 24. Re1 {[%emt 0:00:10]} Rc7 {[%emt 0:08:52]} 25. Kh2 {[%emt 0:03:27]} Qc8 {[%emt 0:03:38]} 26. Bh4 {[%emt 0:01:59]} Be8 {[%emt 0:05:13] Black is weak on the dark squares} (26... Bxh4 $14 27. Qxh4 Nd7) 27. Bd3 $16 {[%emt 0:01:02]} b5 {[%emt 0:00:23]} (27... Nd7 $16 {is a better defense.} 28. Re3 f6 29. exf6 Rc1) 28. Bf6 $18 {[%emt 0:01:06]} b4 $2 {[%emt 0:05:49] [#]} (28... Nd7 29. Bxd8 (29. Bxb5 $2 {perishes.} Nxf6 30. Bd3 Ne4 $19) 29... Qxd8 30. Bxb5 Rb7) 29. Qg5 {[%emt 0:00:49] Weighted Error Value: White=0.12 (very precise) /Black=0.23 (precise) .  Mistake:       	White=2     	Black=5      Inaccurate:     	---       	Black=1      OK:         	White=7     	Black=10     Best:        	White=1     	---        Brilliant:      	White=1     	---} 1-0

[Event "XTX Markets London Masters 2024"]
[Site "London"]
[Date "2024.11.30"]
[Round "3.16"]
[White "Kalavannan, Koby"]
[Black "Kistrup, Nicolai"]
[Result "1-0"]
[ECO "A07"]
[WhiteElo "2225"]
[BlackElo "2420"]
[Annotator "TA"]
[PlyCount "121"]
[EventDate "2024.11.28"]
[EventType "swiss"]
[EventCountry "ENG"]
[SourceTitle "playchess.com"]
[Source "ChessBase"]
[SourceQuality "1"]
[TimeControl "40/5400+30:1800+30"]

{[%evp 9,121,4,12,-1,0,0,0,-7,-3,-10,3,-10,-14,-11,18,15,45,52,36,48,56,44,96,55,96,31,83,34,104,89,95,92,94,84,74,78,97,1,2,17,0,0,0,0,0,0,0,0,0,-22,0,0,-1,-8,0,0,0,0,0,0,0,0,0,0,0,0,8,0,0,0,0,0,0,0,0,0,0,0,0,0,0,0,0,0,0,0,0,0,36,0,0,0,0,0,0,0,0,0,15,15,47,0,0,0,0,0,0,0,0,0,0,0,0,0]} 1. Nf3 {[%emt 0:00:48]} d5 {[%emt 0:00:16]} 2. g3 {[%emt 0:00:07]} g6 {[%emt 0:01:10]} 3. Bg2 {[%emt 0:00:22]} Bg7 {[%emt 0:00:05]} 4. O-O {[%emt 0:00:23]} e5 {[%emt 0:00:32]} 5. d3 {[%emt 0:00:23]} Nc6 {[%emt 0:02:02]} 6. Nc3 {[%emt 0:00:51]} d4 {[%emt 0:13:24]} 7. Ne4 {[%emt 0:00:17]} h6 {[%emt 0:02:38]} 8. c3 {[%emt 0:02:15]} Nge7 {[%emt 0:01:03][%cal Bg8e7,Be7d5,Bd5b6][%mdl 32]} 9. cxd4 {[%emt 0:00:18]} exd4 {[%emt 0:01:15]} 10. a3 {[%emt 0:14:21]} a5 {[%emt 0:03:15]} 11. Qa4 {[%emt 0:02:23]} Nd5 {[%emt 0:08:29]} 12. Bd2 {[%emt 0:03:01]} Nb6 {[%emt 0:14:45]} 13. Qc2 {[%emt 0:00:51]} O-O {[%emt 0:08:42]} 14. Rac1 {[%emt 0:12:17]} a4 {[%emt 0:06:42]} 15. Nc5 {[%emt 0:05:18]} Qe7 {[%emt 0:01:57]} (15... Qf6 $14) 16. Rfe1 {[%emt 0:05:23]} Rd8 {[%emt 0:01:12]} 17. h4 {[%emt 0:05:13]} (17. Nh4 $16) 17... Ra7 {[%emt 0:03:30]} (17... Qf6 $14) 18. e4 {[%emt 0:02:44]} ({White should play} 18. e3 $16) 18... dxe3 {[%emt 0:08:44]} ({Better is} 18... Bf8 $14) 19. Bxe3 $16 {[%emt 0:03:50]} Qf6 {[%emt 0:03:00] [#]} 20. Nxa4 {[%emt 0:01:15]} Ra6 {[%emt 0:01:28]} 21. Nxb6 {[%emt 0:08:34]} cxb6 {[%emt 0:00:07]} 22. d4 {[%emt 0:01:47][%cal Of3e5]} Be6 {[%emt 0:04:17] [#]} 23. Ne5 {[%emt 0:14:16]} Nxd4 $11 {[%emt 0:04:56]} 24. Bxd4 {[%emt 0:00:36]} Rxd4 {[%emt 0:00:08]} 25. Bxb7 {[%emt 0:01:29]} Ra5 {[%emt 0:01:37][%cal Oa5c5]} 26. f4 {[%emt 0:05:49]} Rc5 {[%emt 0:01:32]} 27. Qf2 {[%emt 0:00:12]} Rxc1 {[%emt 0:02:00]} 28. Rxc1 {[%emt 0:00:04]} Qd8 {[%emt 0:00:16]} 29. Nf3 {[%emt 0:01:35] Wards off Rd2} Rd1+ {[%emt 0:01:43]} (29... Bg4 $5) 30. Rxd1 {[%emt 0:00:00]} Qxd1+ {[%emt 0:00:06]} 31. Kh2 {[%emt 0:00:18]} Qd6 {[%emt 0:02:59]} 32. Ne5 {[%emt 0:01:11]} g5 {[%emt 0:00:57]} 33. hxg5 {[%emt 0:01:13]} hxg5 {[%emt 0:00:05]} 34. Qe3 {[%emt 0:00:47]} gxf4 {[%emt 0:00:35]} 35. gxf4 {[%emt 0:00:01]} Qe7 {[%emt 0:01:59]} 36. Be4 {[%emt 0:01:00]} Qh4+ {[%emt 0:00:22]} 37. Kg2 {[%emt 0:00:02]} b5 {[%emt 0:00:30]} 38. Qg3 {[%emt 0:01:00]} Qh5 {[%emt 0:00:26]} 39. Bd3 {[%emt 0:03:55] Wards off Qe2+} Bd5+ {[%emt 0:00:13]} 40. Kf2 {[%emt 0:00:03]} Qd1 {[%emt 0:00:57]} 41. b4 {[%emt 0:07:47]} Qd2+ {[%emt 0:09:08]} 42. Be2 {[%emt 0:01:24]} Qb2 {[%emt 0:01:31]} 43. Qe3 {[%emt 0:05:11]} Bf6 {[%emt 0:04:26]} 44. Kg3 {[%emt 0:00:38]} Kg7 {[%emt 0:06:47]} 45. Kh3 {[%emt 0:01:51]} Be6+ {[%emt 0:01:37]} 46. Bg4 {[%emt 0:00:08]} Bc4 {[%emt 0:03:39]} 47. Kg3 {[%emt 0:02:12]} Qb1 {[%emt 0:04:55]} 48. Bf3 {[%emt 0:00:47]} Qf1 {[%emt 0:01:17]} 49. Bg2 {[%emt 0:01:37]} Qa1 {[%emt 0:00:20]} 50. Kh2 {[%emt 0:00:22]} Be6 {[%emt 0:01:10]} 51. Kg3 {[%emt 0:03:35]} Qb2 {[%emt 0:00:34]} 52. Bf1 {[%emt 0:03:54]} Bd5 {[%emt 0:00:37]} 53. Be2 {[%emt 0:00:04]} Qa2 {[%emt 0:00:31]} 54. Nd7 {[%emt 0:01:45][%cal Od7f6] Black must now prevent Nxf6!} (54. Bxb5 $2 Qg2#) 54... Bb2 {[%emt 0:00:27] A strong pair of Bishops.} 55. Qe7 {[%emt 0:00:21]} (55. Kf2 $14 f6 56. Qe7+ (56. Bxb5 $2 {perishes.} Bd4+ 57. Be2 Qd2 $19) 56... Bf7 57. Qf8+ (57. Bxb5 Bd4+ 58. Ke1 Qa1+ 59. Kd2 Qc3+ 60. Kd1 Qf3+ 61. Kc2 Qb3+ 62. Kd2 Bc3+ 63. Ke2 Qa2+ 64. Kf1 Qb1+ 65. Kf2 Qf5 $11) 57... Kh7 58. Qd6 (58. Bxb5 Bd4+ 59. Kf3 Qf2+ 60. Ke4 Qe3+ 61. Kf5 Be6#) (58. Bd3+ Bg6 $11)) 55... Qxa3+ {[%emt 0:00:16] The position is equal.} 56. Kh4 {[%emt 0:00:18]} Be6 {[%emt 0:00:45]} 57. Qg5+ {[%emt 0:03:12]} (57. Bxb5 $2 {is a self mate.} Qh3+ 58. Kg5 Qh6#) 57... Kh8 {[%emt 0:00:10][%csl Ge6][%cal Ra3h3]} 58. Qd8+ {[%emt 0:00:46]} Kg7 $1 {[%emt 0:00:15] ( -> ...Qh3+)} 59. Qf8+ {[%emt 0:01:23]} (59. Bxb5 $2 {leads to mate.} Qh3+ 60. Kg5 Qh6#) 59... Kh7 {[%emt 0:00:07]} 60. Bg4 {[%emt 0:00:02] Inhibits Qh3+. Bxe6 would now be deadly. Chess con chili.} Bg7 {[%emt 0:01:32] And now ...Bxg4 would win.} 61. Qe7 {[%emt 0:00:33][%mdl 32768] Weighted Error Value: White=0.08 (flawless) /Black=0.06 (flawless) .  Mistake:       	White=4     	Black=3      Inaccurate:     	White=2     	Black=4      OK:         	White=18    	Black=25     Best:        	White=1     	Black=4      Strong:       	---       	Black=1      Brilliant:      	White=1     	---       . Loss on time!?} 1-0

[Event "XTX Markets London Masters 2024"]
[Site "London"]
[Date "2024.11.30"]
[Round "3.17"]
[White "Sowray, Peter J"]
[Black "Golding, Alex"]
[Result "1/2-1/2"]
[ECO "C84"]
[WhiteElo "2205"]
[BlackElo "2404"]
[Annotator "ChessBase"]
[PlyCount "30"]
[EventDate "2024.11.28"]
[EventType "swiss"]
[EventCountry "ENG"]
[SourceTitle "playchess.com"]
[Source "ChessBase"]
[SourceQuality "1"]
[TimeControl "40/5400+30:1800+30"]

1. e4 {[%emt 0:00:05]} e5 {[%emt 0:00:15]} 2. Nf3 {[%emt 0:00:07]} Nc6 {[%emt 0:00:07]} 3. Bb5 {[%emt 0:00:05]} a6 {[%emt 0:00:05]} 4. Ba4 {[%emt 0:00:06]} Nf6 {[%emt 0:00:04]} 5. d3 {[%emt 0:00:09]} b5 {[%emt 0:00:09]} 6. Bb3 {[%emt 0:00:07]} Be7 {[%emt 0:00:10]} 7. a4 {[%emt 0:00:27]} b4 {[%emt 0:00:16]} 8. a5 {[%emt 0:00:33]} O-O {[%emt 0:00:10]} 9. O-O {[%emt 0:02:48]} d6 {[%emt 0:00:10]} 10. Nbd2 {[%emt 0:03:35]} h6 {[%emt 0:03:45]} 11. h3 {[%emt 0:02:30]} Bb7 {[%emt 0:01:06]} 12. Nc4 {[%emt 0:03:27]} Nb8 {[%emt 0:01:42]} 13. Bd2 {[%emt 0:05:05]} c5 {[%emt 0:00:07]} 14. c3 {[%emt 0:03:56]} bxc3 {[%emt 0:00:06]} 15. bxc3 {[%emt 0:00:08]} Nbd7 {[%emt 0:00:21]} 1/2-1/2

[Event "XTX Markets London Masters 2024"]
[Site "London"]
[Date "2024.11.30"]
[Round "3.18"]
[White "Pert, Richard G"]
[Black "Finn, Peter"]
[Result "1-0"]
[ECO "D02"]
[WhiteElo "2399"]
[BlackElo "2175"]
[Annotator "TA"]
[PlyCount "137"]
[EventDate "2024.11.28"]
[EventType "swiss"]
[EventCountry "ENG"]
[SourceTitle "playchess.com"]
[Source "ChessBase"]
[SourceQuality "1"]
[TimeControl "40/5400+30:1800+30"]

{[%evp 11,137,0,0,0,0,0,0,0,12,17,21,18,53,45,52,35,38,0,0,0,0,0,7,-35,-25,-25,-35,-37,-40,-28,0,0,0,0,0,0,0,0,69,67,68,7,6,0,0,0,0,0,12,9,21,21,21,21,21,20,20,20,20,6,151,20,72,72,84,0,0,0,0,0,0,0,0,0,0,0,83,0,0,0,0,0,0,0,0,0,0,0,0,0,0,0,0,0,0,0,0,0,0,0,0,0,0,0,0,0,0,0,0,0,2308,1512,29959,29953,29964,29965,29965,29966,29967,29968,29969,29969,29969,29970,29970,29970,29968,12355]} 1. d4 {[%emt 0:00:05]} Nf6 {[%emt 0:00:06]} 2. Nf3 {[%emt 0:00:09]} d5 {[%emt 0:00:08]} 3. Bf4 {[%emt 0:00:05]} e6 {[%emt 0:00:25]} 4. e3 {[%emt 0:00:22]} Bd6 {[%emt 0:00:09]} 5. Nbd2 {[%emt 0:01:16]} O-O {[%emt 0:00:23]} 6. Ne5 {[%emt 0:05:15]} c5 {[%emt 0:04:29]} 7. c3 {[%emt 0:00:23]} Nc6 {[%emt 0:01:08]} 8. Bd3 {[%emt 0:01:18]} Qc7 {[%emt 0:01:14]} 9. Ndf3 {[%emt 0:01:06]} Ne4 {[%emt 0:08:21]} 10. O-O {[%emt 0:01:01]} cxd4 {[%emt 0:27:41]} 11. cxd4 {[%emt 0:01:25]} Bd7 {[%emt 0:01:40]} 12. Rc1 {[%emt 0:04:29]} f6 {[%emt 0:11:08]} 13. Nxd7 {[%emt 0:12:12]} Qxd7 {[%emt 0:00:11]} 14. Bxd6 {[%emt 0:01:27]} (14. Bxe4 dxe4 15. d5 exd5 16. Qxd5+ Qf7 17. Qxe4 Bxf4 18. Qxf4 Qxa2 19. Nd4) 14... Nxd6 {[%emt 0:04:20]} 15. a3 {[%emt 0:04:24]} Rfc8 {[%emt 0:01:28]} 16. Qe2 {[%emt 0:03:05]} Na5 {[%emt 0:07:01]} 17. e4 {[%emt 0:07:18]} dxe4 {[%emt 0:02:18]} (17... Nxe4 {is more complex.} 18. Bxe4 dxe4 19. Qxe4 Rxc1 20. Rxc1 Rc8) 18. Bxe4 {[%emt 0:00:07]} Nxe4 {[%emt 0:00:46]} 19. Qxe4 {[%emt 0:00:06]} Rxc1 {[%emt 0:01:10]} 20. Rxc1 {[%emt 0:00:07]} Nc6 {[%emt 0:00:16]} 21. Re1 {[%emt 0:01:38]} Rd8 {[%emt 0:00:48]} 22. g3 {[%emt 0:12:59]} Kf7 {[%emt 0:01:08]} 23. Qxh7 {[%emt 0:01:29]} Nxd4 {[%emt 0:04:50]} 24. Qh5+ {[%emt 0:00:20]} Kg8 {[%emt 0:01:06]} (24... Ke7 $11) 25. Nxd4 $14 {[%emt 0:00:54]} Qxd4 {[%emt 0:00:17]} 26. Rxe6 {[%emt 0:00:21]} ({Better is} 26. Qb5 $1 $14) 26... Qxb2 {[%emt 0:09:38][%mdl 4096] Endgame KQR-KQR} 27. Re7 {[%emt 0:00:57]} Qc1+ {[%emt 0:05:15]} 28. Kg2 {[%emt 0:00:07]} Qc6+ {[%emt 0:00:14]} 29. f3 {[%emt 0:02:05]} (29. Kh3 $5 Qc8+ $8 30. g4 $11) 29... Qc2+ {[%emt 0:00:30]} 30. Kh3 {[%emt 0:00:05] White wants to mate with Qf7+.} Qh7 {[%emt 0:00:41]} 31. Qxh7+ {[%emt 0:00:30]} Kxh7 {[%emt 0:00:05]} 32. Rxb7 $11 {[%emt 0:00:15] KR-KR. White is a pawn up.} Rd3 {[%emt 0:00:16][%csl LRa3,LRf3]} 33. Rxa7 {[%emt 0:00:16]} Rxf3 {[%emt 0:00:05]} 34. Kg4 {[%emt 0:01:25]} Rf2 {[%emt 0:00:48]} 35. h4 {[%emt 0:00:07]} Ra2 {[%emt 0:00:15]} (35... Kh6 $11) 36. Kf3 {[%emt 0:01:47]} (36. a4 $16) 36... Ra1 {[%emt 0:00:10]} (36... Kg6 $11) 37. a4 $16 {[%emt 0:04:39]} Kg6 {[%emt 0:00:48]} 38. g4 {[%emt 0:02:41] White is more active.} (38. a5 $1 $16) 38... Rf1+ $11 {[%emt 0:00:56]} 39. Kg2 {[%emt 0:05:02]} Ra1 {[%emt 0:00:10]} 40. Ra6 {[%emt 0:01:41]} Ra3 {[%emt 0:02:53]} 41. Kh2 {[%emt 0:32:51]} Kh6 {[%emt 0:30:20]} 42. Ra5 {[%emt 0:01:07]} Kg6 {[%emt 0:00:40]} 43. Kg2 {[%emt 0:00:25]} Kh6 {[%emt 0:01:21] [#]} (43... Rc3 $11 {remains equal.}) 44. g5+ {[%emt 0:01:11]} (44. Ra8 $1 $16) 44... fxg5 {[%emt 0:00:23]} 45. hxg5+ {[%emt 0:00:05]} Kh5 {[%emt 0:00:13]} 46. Kf2 {[%emt 0:00:28]} g6 {[%emt 0:00:00]} 47. Ke2 {[%emt 0:00:00]} Kg4 {[%emt 0:00:00]} 48. Kd2 {[%emt 0:00:00]} Kf4 {[%emt 0:00:00]} 49. Kc2 {[%emt 0:00:00]} Ke4 $1 {[%emt 0:00:00]} 50. Ra6 {[%emt 0:00:00][%cal Oc2b2]} Kf5 $1 {[%emt 0:00:00]} 51. Kb2 {[%emt 0:00:00]} Rg3 {[%emt 0:00:00]} 52. Ra5+ {[%emt 0:00:00]} Ke6 {[%emt 0:00:00]} 53. Rb5 {[%emt 0:00:00]} Kd7 {[%emt 0:00:15]} 54. a5 {[%emt 0:00:00]} Rg2+ $1 {[%emt 0:03:41]} 55. Kb3 {[%emt 0:00:00]} Rg3+ {[%emt 0:00:08]} 56. Kb2 {[%emt 0:00:00]} Rg2+ $1 {[%emt 0:00:16]} 57. Kc3 {[%emt 0:00:00]} Rg3+ {[%emt 0:00:09]} 58. Kd4 {[%emt 0:01:03]} Rg4+ {[%emt 0:00:26]} 59. Ke3 {[%emt 0:05:01] Threatens to win with a6.} Ra4 {[%emt 0:00:12]} 60. Kd3 {[%emt 0:00:18]} Kc6 $2 {[%emt 0:05:29][%mdl 8192]} (60... Kd6 $11) 61. Rb6+ $18 {[%emt 0:00:48]} Kc7 {[%emt 0:01:33]} 62. Rxg6 {[%emt 0:04:43]} Rxa5 {[%emt 0:00:04]} 63. Ke4 {[%emt 0:00:06]} Kd7 {[%emt 0:00:35] [#]} 64. Kf4 $1 {[%emt 0:00:05]} Ra1 {[%emt 0:00:56]} 65. Rf6 {[%emt 0:00:49]} Ra5 {[%emt 0:00:32]} 66. Kg4 {[%emt 0:00:41]} Ke7 {[%emt 0:00:28]} 67. Kh5 {[%emt 0:00:05]} Ra8 {[%emt 0:00:14]} 68. Kh6 {[%emt 0:01:19]} Rg8 {[%emt 0:00:47]} 69. Rf1 {[%emt 0:00:24]} 1-0

[Event "XTX Markets London Masters 2024"]
[Site "London"]
[Date "2024.11.30"]
[Round "3.19"]
[White "Thorfinnsson, Bjorn"]
[Black "Li, Wenxiang"]
[Result "0-1"]
[ECO "D02"]
[WhiteElo "2370"]
[BlackElo "2145"]
[Annotator "TA"]
[PlyCount "88"]
[EventDate "2024.11.28"]
[EventType "swiss"]
[EventCountry "ENG"]
[SourceTitle "playchess.com"]
[Source "ChessBase"]
[SourceQuality "1"]
[TimeControl "40/5400+30:1800+30"]

{[%evp 9,88,-3,20,12,18,14,11,0,0,0,0,0,0,0,-1,-10,42,35,36,37,31,57,37,39,55,-40,-40,-50,-59,-49,0,12,75,80,70,66,67,43,55,0,0,-59,-74,-67,-79,-81,-84,-79,-50,-50,-33,-81,-79,-84,-89,-181,-170,-461,-225,-235,-244,-240,-236,-314,-278,-275,-167,-673,-501,-613,-601,-615,-607,-885,-847,-967,-954,-889,-868,-29979,-29980]} 1. d4 {[%emt 0:00:53]} Nf6 {[%emt 0:05:38]} 2. Nf3 {[%emt 0:00:07]} c6 {[%emt 0:00:12]} 3. c3 {[%emt 0:00:31]} d5 {[%emt 0:01:19]} 4. Bg5 {[%emt 0:00:06]} Qb6 {[%emt 0:01:00]} 5. Qb3 {[%emt 0:01:49]} Ne4 {[%emt 0:01:07]} 6. Bf4 {[%emt 0:00:57]} Bf5 {[%emt 0:00:33][%cal Bc8f5,Bf5e4,Be4g6][%mdl 32]} 7. Nbd2 {[%emt 0:00:20]} Nd7 {[%emt 0:00:57]} 8. e3 {[%emt 0:00:31]} e6 {[%emt 0:00:51]} 9. Nxe4 {[%emt 0:08:57]} Bxe4 {[%emt 0:00:11]} 10. Nd2 {[%emt 0:00:10]} Bg6 {[%emt 0:00:38]} 11. Be2 {[%emt 0:06:01]} Be7 {[%emt 0:00:32]} 12. c4 {[%emt 0:01:26][%cal Bc3c4,Bc4c5][%mdl 32]} Bb4 {[%emt 0:05:33]} ({Better is} 12... Qxb3 $11 13. Nxb3 a5) 13. c5 $14 {[%emt 0:00:11]} Qa5 {[%emt 0:05:00] [#]} 14. O-O $1 {[%emt 0:00:05]} e5 $1 {[%emt 0:17:24]} (14... Bxd2 $6 15. Qxb7 Rd8 (15... Qd8 $2 16. Rfd1 $18) 16. Bd6 $16 (16. Qxc6 O-O $11)) 15. Bg3 $1 {[%emt 0:03:23]} Bxd2 {[%emt 0:13:08]} 16. Qxb7 {[%emt 0:00:11]} Rd8 {[%emt 0:01:49]} 17. Qxc6 {[%emt 0:03:19]} (17. a3 $1 $14) 17... O-O $15 {[%emt 0:01:21]} 18. a3 $1 {[%emt 0:16:30] and b4 would now be decisive} Nb8 $1 {[%emt 0:00:40]} 19. Qb7 {[%emt 0:05:41]} Rd7 {[%emt 0:02:21]} (19... exd4 $1 $15 20. exd4 Qa4) 20. Qb3 $1 $11 {[%emt 0:01:21]} Nc6 {[%emt 0:08:40]} (20... exd4 $1 $11 {remains equal.} 21. Bxb8 Qxc5) 21. Qd1 $16 {[%emt 0:01:41]} exd4 {[%emt 0:02:37]} 22. b4 {[%emt 0:03:10]} Bxb4 $1 {[%emt 0:01:34]} 23. axb4 {[%emt 0:01:16]} Qxb4 {[%emt 0:00:07]} 24. Ra6 {[%emt 0:05:32]} (24. Bd6 $14) 24... d3 $36 {[%emt 0:07:17][%mdl 2048] White is under pressure.} 25. Rxc6 {[%emt 0:02:46]} ({White should play} 25. Bg4 $11 f5 26. Rxc6 fxg4 (26... Qxg4 $2 27. Qxd3 Qc4 28. Qa3 $18) 27. Rxg6 hxg6 28. c6) 25... Qb5 $1 $15 {[%emt 0:02:37]} (25... dxe2 26. Qxe2 h5 27. Rd6) 26. Bg4 {[%emt 0:00:08]} Qxc6 {[%emt 0:00:21]} 27. Bxd7 {[%emt 0:00:16]} Qxd7 {[%emt 0:00:04]} 28. Qb3 {[%emt 0:01:34]} Qc6 {[%emt 0:01:18]} 29. Bd6 {[%emt 0:00:43]} Ra8 {[%emt 0:01:12]} 30. f3 {[%emt 0:04:09]} (30. Ra1 $15) 30... h5 $17 {[%emt 0:00:49]} 31. Kf2 {[%emt 0:01:50]} a5 {[%emt 0:02:32]} 32. Qb6 {[%emt 0:03:11]} (32. Ra1 $17) 32... Qa4 $19 {[%emt 0:00:11]} 33. Qb7 $2 {[%emt 0:00:50]} (33. Qb2 {was worth a try.}) 33... Re8 {[%emt 0:01:19]} (33... Qc2+ $142 34. Kg3 Re8) 34. Qb2 {[%emt 0:08:57] [#]} Qh4+ $1 {[%emt 0:00:59]} 35. Bg3 {[%emt 0:08:04] [#]} Qb4 $1 {[%emt 0:00:24] White is weak on the light squares} 36. Be5 {[%emt 0:05:49]} Qxc5 {[%emt 0:04:37]} 37. Rc1 {[%emt 0:00:36]} Qb4 {[%emt 0:03:54]} 38. Bxg7 $2 {[%emt 0:01:36]} (38. Qxb4 axb4 39. Bd4) 38... Qh4+ {[%emt 0:00:07]} (38... Qxb2+ 39. Bxb2 Bf5 40. Bf6 $15) 39. Kf1 {[%emt 0:04:46]} d2 $1 {[%emt 0:00:18]} ({Worse is} 39... Rxe3 40. Rc8+) (39... Qxh2 40. Bh8 Qh1+ (40... Rxe3 41. Qg7#) 41. Kf2 Qh4+ 42. Kg1 $11) 40. Qxd2 {[%emt 0:00:35]} Kxg7 {[%emt 0:00:10]} 41. Qxd5 {[%emt 0:02:01]} Qxh2 {[%emt 0:01:04] ...Qh1+ is the strong threat.} 42. Rc5 {[%emt 0:00:28]} Qh1+ {[%emt 0:00:15]} (42... Rxe3 43. Qd4+ (43. Rxa5 $2 {is a self mate.} Qh1+ 44. Kf2 Qe1#) 43... Kh7 44. Qxe3 $18) 43. Kf2 {[%emt 0:00:06]} Qh4+ {[%emt 0:00:07]} 44. Kf1 {[%emt 0:00:32]} Rxe3 {[%emt 0:00:12]} 0-1

[Event "XTX Markets London Masters 2024"]
[Site "London"]
[Date "2024.11.30"]
[Round "3.20"]
[White "Bin-Suhayl, Ieysaa"]
[Black "Bates, Richard A"]
[Result "0-1"]
[ECO "E62"]
[WhiteElo "2183"]
[BlackElo "2315"]
[Annotator "RC"]
[PlyCount "92"]
[EventDate "2024.11.28"]
[EventType "swiss"]
[EventCountry "ENG"]
[SourceTitle "playchess.com"]
[Source "ChessBase"]
[SourceQuality "1"]
[TimeControl "40/5400+30:1800+30"]

1. Nf3 {[%emt 0:09:41]} Nf6 {[%emt 0:00:28]} 2. c4 {[%emt 0:00:10]} g6 {[%emt 0:00:42]} 3. g3 {[%emt 0:00:20]} Bg7 {[%emt 0:00:09]} 4. Bg2 {[%emt 0:00:02]} O-O {[%emt 0:00:35]} 5. O-O {[%emt 0:00:06]} d6 {[%emt 0:00:18]} 6. d4 {[%emt 0:00:06]} Nc6 {[%emt 0:02:47]} 7. Nc3 {[%emt 0:00:05]} Bg4 {[%emt 0:00:35]} 8. h3 {[%emt 0:01:04]} Bxf3 {[%emt 0:01:14]} 9. Bxf3 {[%emt 0:00:05]} Nd7 {[%emt 0:00:23]} 10. e3 {[%emt 0:00:54]} e5 {[%emt 0:01:30]} 11. d5 {[%emt 0:06:20]} Ne7 {[%emt 0:02:07]} 12. e4 {[%emt 0:03:27]} f5 {[%emt 0:01:50]} 13. h4 {[%emt 0:00:15]} Nf6 {[%emt 0:04:13]} 14. g4 {[%emt 0:06:27]} fxg4 {[%emt 0:06:15]} 15. Bxg4 {[%emt 0:00:05]} Kh8 {[%emt 0:02:17]} 16. h5 {[%emt 0:16:31]} gxh5 {[%emt 0:05:26]} 17. Bxh5 {[%emt 0:00:03]} Qd7 {[%emt 0:10:04]} 18. Kh2 {[%emt 0:01:56]} Nxh5 {[%emt 0:01:59]} 19. Qxh5 {[%emt 0:00:05]} Ng6 {[%emt 0:00:12]} 20. f3 {[%emt 0:10:23]} Nf4 {[%emt 0:04:54]} 21. Bxf4 {[%emt 0:04:26]} exf4 {[%emt 0:00:18]} 22. Qh3 {[%emt 0:10:41]} Qxh3+ {[%emt 0:07:37]} 23. Kxh3 {[%emt 0:00:08]} Bd4 {[%emt 0:00:33]} 24. Nb5 {[%emt 0:10:13]} Be3 {[%emt 0:17:51]} 25. Rg1 {[%emt 0:05:20]} Bxg1 {[%emt 0:01:06]} 26. Rxg1 {[%emt 0:00:04]} Rf7 {[%emt 0:08:09]} 27. Nd4 {[%emt 0:00:09]} Rg8 {[%emt 0:01:40]} 28. Rxg8+ {[%emt 0:01:38]} Kxg8 {[%emt 0:00:08]} 29. Ne6 {[%emt 0:00:54]} Rf6 {[%emt 0:06:11]} 30. Nxc7 {[%emt 0:01:27]} Rg6 {[%emt 0:00:33]} 31. Nb5 {[%emt 0:04:45]} a6 {[%emt 0:05:14]} 32. Nd4 {[%emt 0:00:02]} Rg3+ {[%emt 0:02:01]} 33. Kh4 {[%emt 0:02:43]} Kf7 {[%emt 0:00:17]} 34. Nf5 {[%emt 0:00:56]} Rg6 {[%emt 0:02:12]} 35. b4 {[%emt 0:03:53]} b6 {[%emt 0:00:29]} 36. a3 {[%emt 0:00:34]} Ke8 {[%emt 0:00:44]} 37. a4 {[%emt 0:02:25]} Kd7 {[%emt 0:01:42]} 38. e5 {[%emt 0:00:31]} dxe5 {[%emt 0:00:23]} 39. c5 {[%emt 0:00:06]} bxc5 {[%emt 0:01:12]} 40. bxc5 {[%emt 0:00:02]} Rg1 {[%emt 0:02:03]} 41. c6+ {[%emt 0:20:19]} Kc7 {[%emt 0:01:47]} 42. Ne7 {[%emt 0:00:35]} a5 {[%emt 0:10:19]} 43. Kh5 {[%emt 0:00:16]} Rg3 {[%emt 0:01:49]} 44. Kh6 {[%emt 0:01:34]} Rxf3 {[%emt 0:00:47]} 45. Kg5 {[%emt 0:00:15]} Rc3 {[%emt 0:01:52]} 46. Kf5 {[%emt 0:01:02]} Kd6 {[%emt 0:00:55]} 0-1